bitfinex-derivatives/quotes_BTCF0:USTF0_20250822
["timestamp","ask_amount","ask_price","bid_price","bid_amount"]
[1755878432489,1.49994844,116570.0,116560.0,0.0022]
[1755878432988,1.58573614,116570.0,116560.0,0.0022]
[1755878433190,1.06280271,116570.0,116560.0,0.0022]
[1755878433385,1.58573614,116570.0,116560.0,0.0022]
[1755878433595,0.4353551,116560.0,116550.0,0.00012835]
[1755878433891,0.4353625,116550.0,116540.0,0.07945]
[1755878434080,0.71036,116550.0,116540.0,0.35358]
[1755878434278,0.07618,116550.0,116540.0,1.0921656]
[1755878434481,1.23329343,116550.0,116540.0,0.16119941]
[1755878434682,1.56909593,116550.0,116540.0,0.08174941]
[1755878434886,1.0461625,116550.0,116540.0,0.12496339]
[1755878435089,1.56909593,116550.0,116540.0,0.05662635]
[1755878435480,2.46681593,116550.0,116540.0,0.05662635]
[1755878435686,2.48614484,116550.0,116540.0,0.05662635]
[1755878435891,1.96321141,116550.0,116540.0,0.05662635]
[1755878436189,2.48614484,116550.0,116540.0,0.05662635]
[1755878436789,2.48614484,116550.0,116540.0,0.04321398]
[1755878437094,1.96541141,116550.0,116540.0,0.0012]
[1755878437285,2.48834484,116550.0,116540.0,0.04437916]
[1755878437694,2.40254234,116550.0,116540.0,0.04437916]
[1755878437895,2.40554234,116550.0,116540.0,0.05852162]
[1755878438389,2.28434494,116550.0,116540.0,0.1258221]
[1755878438599,2.28434494,116550.0,116540.0,0.01534246]
[1755878438793,0.77788891,116550.0,116540.0,0.40590246]
[1755878439088,0.41708891,116550.0,116540.0,1.01464579]
[1755878439285,0.02452891,116550.0,116540.0,1.26464579]
[1755878439885,0.00012835,116560.0,116550.0,0.2670026]
[1755878440093,0.00012835,116560.0,116550.0,1.90791849]
[1755878440394,0.00012835,116560.0,116550.0,2.26871849]
[1755878440597,0.00012835,116560.0,116550.0,1.74578506]
[1755878440804,0.00012835,116560.0,116550.0,2.26871849]
[1755878441004,0.00412835,116560.0,116550.0,2.26971849]
[1755878441204,0.00412835,116560.0,116550.0,2.51971849]
[1755878441708,0.08230835,116560.0,116550.0,2.07311589]
[1755878442004,0.39868835,116560.0,116550.0,0.40470246]
[1755878442192,0.19351835,116560.0,116550.0,0.91449343]
[1755878442394,0.48448355,116560.0,116550.0,0.24115038]
[1755878442697,1.09528355,116560.0,116550.0,0.01441038]
[1755878442898,2.51149698,116560.0,116550.0,0.01441038]
[1755878443094,2.51149698,116560.0,116540.0,0.11235332]
[1755878443095,0.4783625,116550.0,116540.0,0.11235332]
[1755878443300,0.1970199,116540.0,116520.0,0.28342485]
[1755878443497,1.27629343,116530.0,116520.0,0.46699326]
[1755878443806,1.36211073,116530.0,116520.0,0.11340326]
[1755878444305,0.8391773,116530.0,116520.0,0.38755326]
[1755878444510,0.8391773,116530.0,116520.0,0.11340326]
[1755878444810,0.75336,116530.0,116520.0,0.45573043]
[1755878444997,0.75336,116530.0,116520.0,0.28634043]
[1755878445303,0.39356,116530.0,116520.0,0.66098503]
[1755878445604,0.3618,116530.0,116520.0,2.07683846]
[1755878445807,0.001,116530.0,116520.0,2.32783846]
[1755878446002,0.001,116530.0,116520.0,2.43977542]
[1755878446204,0.00012835,116540.0,116530.0,0.1905773]
[1755878446507,0.38520835,116540.0,116530.0,0.4763973]
[1755878446819,0.38508,116530.0,116520.0,0.40247739]
[1755878447111,1.26881343,116530.0,116520.0,0.29771739]
[1755878447304,1.26781343,116530.0,116520.0,0.29471739]
[1755878448000,0.74488,116530.0,116520.0,0.29471739]
[1755878448412,1.26781343,116530.0,116520.0,0.29471739]
[1755878448611,1.26881343,116530.0,116520.0,0.38154199]
[1755878448809,1.26881343,116530.0,116520.0,0.29471739]
[1755878449010,1.51881343,116530.0,116520.0,0.18278043]
[1755878449312,0.99588,116530.0,116520.0,0.18278043]
[1755878449508,1.51881343,116530.0,116520.0,0.18278043]
[1755878449715,1.51981343,116530.0,116520.0,0.26860503]
[1755878449919,0.99588,116530.0,116520.0,0.26760503]
[1755878450105,1.52181343,116530.0,116520.0,0.26860503]
[1755878450612,1.52381343,116530.0,116520.0,0.18278043]
[1755878450813,1.00088,116530.0,116520.0,0.26860503]
[1755878451013,1.00088,116530.0,116520.0,0.37336503]
[1755878451210,1.00088,116530.0,116520.0,0.66196503]
[1755878451412,0.75088,116530.0,116520.0,0.66196503]
[1755878451910,0.58881,116530.0,116520.0,0.66196503]
[1755878452111,0.007,116530.0,116520.0,2.32465846]
[1755878452314,0.007,116530.0,116520.0,2.68545846]
[1755878452810,0.005,116530.0,116520.0,1.27276503]
[1755878453010,0.18499,116530.0,116520.0,2.32545846]
[1755878453217,0.008,116530.0,116520.0,2.32545846]
[1755878453412,0.008,116530.0,116520.0,2.43648059]
[1755878453614,0.008,116530.0,116520.0,2.79728059]
[1755878455017,0.00012835,116540.0,116530.0,0.0858173]
[1755878455220,0.00012835,116540.0,116530.0,1.36311073]
[1755878455611,0.00012835,116540.0,116530.0,1.61311073]
[1755878455907,0.00012835,116540.0,116530.0,1.52729343]
[1755878456125,0.00012835,116540.0,116530.0,1.61311073]
[1755878456419,0.34918835,116540.0,116530.0,2.50475073]
[1755878456612,0.34918835,116540.0,116530.0,1.00431073]
[1755878456820,0.75205835,116540.0,116530.0,0.4813773]
[1755878457013,0.75205835,116540.0,116530.0,1.3699373]
[1755878457321,0.34618835,116540.0,116530.0,1.3698173]
[1755878457523,0.54591835,116540.0,116530.0,1.89275073]
[1755878457727,0.54591835,116540.0,116530.0,1.89263073]
[1755878457728,0.74905835,116540.0,116530.0,1.89263073]
[1755878458021,0.70698835,116540.0,116530.0,1.89263073]
[1755878458422,0.70698835,116540.0,116530.0,0.4813773]
[1755878458623,0.70698835,116540.0,116530.0,1.89183073]
[1755878458825,0.74905835,116540.0,116530.0,1.89183073]
[1755878459011,0.74605835,116540.0,116530.0,1.89383073]
[1755878459216,0.74605835,116540.0,116530.0,1.89283073]
[1755878459417,0.38125835,116540.0,116530.0,1.89283073]
[1755878459922,0.69998835,116540.0,116530.0,1.89283073]
[1755878460130,0.33818835,116540.0,116530.0,1.88983073]
[1755878460325,0.69998835,116540.0,116530.0,1.89283073]
[1755878460626,0.17811835,116540.0,116530.0,1.89283073]
[1755878460814,0.33918835,116540.0,116530.0,1.89283073]
[1755878461419,0.38125835,116540.0,116530.0,1.2005073]
[1755878461619,0.99205835,116540.0,116530.0,0.0890173]
[1755878461817,1.60160168,116540.0,116530.0,0.0032]
[1755878462022,1.60160168,116540.0,116520.0,0.19703433]
[1755878462228,1.26386343,116530.0,116520.0,0.11121043]
[1755878462521,0.74093,116530.0,116520.0,0.0858246]
[1755878462724,2.14858343,116530.0,116520.0,0.0858246]
[1755878463414,1.62565,116530.0,116520.0,0.0858246]
[1755878463611,1.62765,116530.0,116520.0,0.0868246]
[1755878463822,2.15058343,116530.0,116520.0,0.15555786]
[1755878464724,2.15458343,116530.0,116520.0,0.15555786]
[1755878464924,2.15458343,116530.0,116520.0,0.19838574]
[1755878465126,2.15458343,116530.0,116520.0,0.19738574]
[1755878465426,0.75093,116530.0,116520.0,0.19858574]
[1755878466021,0.75093,116530.0,116520.0,0.36797574]
[1755878466620,1.27386343,116530.0,116520.0,0.19858574]
[1755878467628,0.75093,116530.0,116520.0,0.47273574]
[1755878468027,0.75093,116530.0,116520.0,0.59194574]
[1755878468818,0.54779,116530.0,116520.0,0.59194574]
[1755878469023,0.08216,116530.0,116520.0,1.11487917]
[1755878469224,0.01,116530.0,116520.0,1.99715917]
[1755878469632,0.01,116530.0,116520.0,1.83502574]
[1755878469826,0.01,116530.0,116520.0,2.35795917]
[1755878470027,0.01,116530.0,116520.0,2.60795917]
[1755878470423,0.00012835,116540.0,116530.0,0.4791773]
[1755878470624,0.45181549,116550.0,116530.0,0.4791773]
[1755878470625,0.01872714,116550.0,116540.0,0.0858099]
[1755878470826,0.01872714,116550.0,116540.0,2.49654333]
[1755878471127,0.44161501,116570.0,116560.0,0.4791552]
[1755878471428,0.36537386,116570.0,116560.0,1.88680863]
[1755878471633,0.20430386,116570.0,116560.0,1.88680863]
[1755878471833,0.09947386,116570.0,116560.0,1.88680863]
[1755878472032,0.02731386,116570.0,116560.0,2.13680863]
[1755878472328,0.57537115,116590.0,116580.0,0.0857804]
[1755878472535,0.74093515,116590.0,116580.0,0.4791404]
[1755878472732,0.74093515,116590.0,116580.0,1.00207383]
[1755878473030,0.36080515,116590.0,116580.0,0.4791404]
[1755878473333,0.36080515,116590.0,116580.0,1.00207383]
[1755878473523,0.36080515,116590.0,116580.0,0.4791404]
[1755878473723,0.46520515,116590.0,116580.0,1.00207383]
[1755878474120,0.57943515,116590.0,116580.0,0.4791404]
[1755878474325,0.46520515,116590.0,116580.0,0.0857805]
[1755878474548,1.23813858,116590.0,116570.0,1.27923145]
[1755878474821,0.74915,116580.0,116570.0,0.50624145]
[1755878475027,1.29074743,116580.0,116570.0,0.0771]
[1755878475234,0.767814,116580.0,116570.0,0.3697278]
[1755878475424,0.767814,116580.0,116570.0,0.4889378]
[1755878475626,0.768014,116580.0,116570.0,0.4891378]
[1755878475935,0.769014,116580.0,116570.0,0.5995324]
[1755878476128,0.769014,116580.0,116570.0,0.1876946]
[1755878476334,1.29194743,116580.0,116570.0,0.0002]
[1755878476834,0.769014,116580.0,116570.0,0.0002]
[1755878477034,0.769014,116580.0,116570.0,0.28414]
[1755878477239,0.769014,116580.0,116570.0,0.11221]
[1755878477537,0.769014,116580.0,116570.0,0.3699278]
[1755878477835,0.769014,116580.0,116570.0,0.4827078]
[1755878478229,0.769014,116580.0,116570.0,0.0002]
[1755878478431,1.29194743,116580.0,116570.0,0.0002]
[1755878478629,1.29494743,116580.0,116570.0,0.0012]
[1755878478835,0.772014,116580.0,116570.0,0.2589178]
[1755878479038,0.772014,116580.0,116570.0,0.3709278]
[1755878479224,1.29494743,116580.0,116570.0,0.1579078]
[1755878479427,1.29494743,116580.0,116570.0,0.2699178]
[1755878479632,1.29494743,116580.0,116570.0,0.1989978]
[1755878479833,0.772014,116580.0,116570.0,0.28514]
[1755878480034,0.772014,116580.0,116570.0,0.3709278]
[1755878480342,0.772014,116580.0,116570.0,0.4837078]
[1755878480738,0.601294,116580.0,116570.0,0.4837078]
[1755878480933,0.772014,116580.0,116570.0,1.00664123]
[1755878481134,0.198424,116580.0,116570.0,1.00664123]
[1755878481332,0.369144,116580.0,116570.0,0.4837078]
[1755878481630,0.413744,116580.0,116570.0,1.00664123]
[1755878481834,0.243024,116580.0,116570.0,1.00664123]
[1755878482030,0.022864,116580.0,116570.0,1.25664123]
[1755878482229,0.0042,116580.0,116570.0,1.61744123]
[1755878482635,0.0042,116580.0,116570.0,2.50632123]
[1755878483145,0.0042,116580.0,116570.0,1.9833878]
[1755878483347,0.0042,116580.0,116570.0,2.50632123]
[1755878483543,0.39348,116580.0,116570.0,0.6725778]
[1755878483844,0.41216649,116580.0,116570.0,0.11321]
[1755878484143,0.41216649,116580.0,116570.0,0.4837078]
[1755878484339,0.02288649,116580.0,116570.0,1.36744123]
[1755878484530,0.0042,116580.0,116570.0,1.61744123]
[1755878484734,0.57974118,116600.0,116590.0,0.4824931]
[1755878485032,0.01906616,116600.0,116590.0,2.25786653]
[1755878485237,0.01906616,116600.0,116590.0,2.50786653]
[1755878485540,0.01906616,116600.0,116590.0,2.55040923]
[1755878485735,0.01868498,116600.0,116590.0,2.55040923]
[1755878486131,0.57936,116620.0,116610.0,0.1977684]
[1755878486337,0.57936,116620.0,116600.0,0.0857645]
[1755878486338,1.29169246,116620.0,116600.0,0.0857645]
[1755878486544,0.91221343,116610.0,116600.0,0.0857645]
[1755878486843,0.76875903,116610.0,116600.0,0.3697045]
[1755878487039,0.49463903,116610.0,116600.0,1.00541793]
[1755878487245,0.08923903,116610.0,116600.0,1.36621793]
[1755878487743,0.36335903,116610.0,116600.0,1.36621793]
[1755878487937,0.36355903,116610.0,116600.0,1.36641793]
[1755878488134,0.36355903,116610.0,116600.0,0.4826845]
[1755878488444,1.62765086,116610.0,116600.0,0.0002]
[1755878488646,0.28588,116600.0,116590.0,0.0475427]
[1755878488837,1.29169246,116600.0,116590.0,0.0435427]
[1755878489032,2.52121826,116600.0,116590.0,0.0425427]
[1755878489234,0.38928,116590.0,116580.0,0.07942]
[1755878489438,1.36155506,116590.0,116570.0,0.04345428]
[1755878489743,0.38928,116560.0,116550.0,0.21589089]
[1755878489936,0.75008,116560.0,116550.0,0.17403089]
[1755878490550,1.25532,116580.0,116550.0,0.17403089]
[1755878490551,0.67952,116570.0,116560.0,0.4825152]
[1755878490734,0.5279695,116590.0,116580.0,0.3258]
[1755878491042,0.4687326,116600.0,116590.0,0.4824931]
[1755878491244,0.4687326,116600.0,116590.0,0.11278]
[1755878491245,0.9329326,116600.0,116590.0,0.11278]
[1755878491543,0.1064,116590.0,116580.0,0.1566972]
[1755878491734,0.4672,116590.0,116580.0,0.22628796]
[1755878491930,0.4674,116590.0,116580.0,0.15556796]
[1755878492136,0.4644,116590.0,116580.0,0.15556796]
[1755878492340,0.4644,116590.0,116580.0,0.55228796]
[1755878492536,0.4654,116590.0,116580.0,1.07522139]
[1755878492732,0.0012,116590.0,116580.0,1.96998139]
[1755878492933,0.67024,116590.0,116580.0,0.22649126]
[1755878493138,0.67124,116590.0,116580.0,0.22649126]
[1755878494641,0.92124,116590.0,116580.0,0.06979076]
[1755878494841,1.44417343,116590.0,116580.0,0.06979076]
[1755878495037,0.92124,116590.0,116580.0,0.15557126]
[1755878495942,1.44417343,116590.0,116580.0,0.06979076]
[1755878496146,1.44417343,116590.0,116580.0,0.15557126]
[1755878496340,0.92124,116590.0,116580.0,0.15557126]
[1755878496542,0.92124,116590.0,116580.0,0.44028126]
[1755878496844,0.92124,116590.0,116580.0,0.55229126]
[1755878497050,0.31044,116590.0,116580.0,1.07522469]
[1755878497245,0.48988,116590.0,116580.0,1.07522469]
[1755878497642,0.48988,116590.0,116580.0,0.55229126]
[1755878497851,0.92124,116590.0,116580.0,0.55229126]
[1755878498446,0.92024,116590.0,116580.0,0.55229126]
[1755878498638,0.92024,116590.0,116580.0,0.15557126]
[1755878498842,1.44317343,116590.0,116580.0,0.15557126]
[1755878499245,0.92024,116590.0,116580.0,0.15557126]
[1755878499553,0.91924,116590.0,116580.0,0.15557126]
[1755878500454,0.91924,116590.0,116580.0,0.22649126]
[1755878500749,0.92024,116590.0,116580.0,0.15557126]
[1755878500953,0.92124,116590.0,116580.0,1.07522469]
[1755878501153,0.60068,116590.0,116580.0,1.07522469]
[1755878501448,0.23109,116590.0,116580.0,1.07522469]
[1755878501750,0.0022,116590.0,116580.0,1.44561126]
[1755878501948,0.92124,116590.0,116580.0,0.15557126]
[1755878502143,1.44317343,116590.0,116580.0,0.15557126]
[1755878502343,1.81296,116590.0,116580.0,0.15557126]
[1755878503851,0.11239,116590.0,116580.0,0.55038126]
[1755878504051,0.1036,116590.0,116580.0,1.07331469]
[1755878504250,0.59595,116590.0,116580.0,1.07331469]
[1755878504451,0.23515,116590.0,116580.0,1.07331469]
[1755878504754,0.13175,116590.0,116580.0,1.07331469]
[1755878505152,0.0012,116590.0,116580.0,1.07331469]
[1755878505349,0.0022,116590.0,116580.0,1.07331469]
[1755878505548,0.0022,116590.0,116580.0,1.32331469]
[1755878505754,0.01939141,116610.0,116600.0,0.2003557]
[1755878505953,0.01939141,116610.0,116600.0,1.00350913]
[1755878506150,0.26387141,116610.0,116600.0,1.00350913]
[1755878506452,0.34322141,116610.0,116600.0,0.83606913]
[1755878506645,0.34322141,116610.0,116600.0,1.00350913]
[1755878507250,0.70402141,116610.0,116600.0,0.3131357]
[1755878507957,0.70402141,116610.0,116600.0,0.4805757]
[1755878508157,0.70402141,116610.0,116600.0,0.3141357]
[1755878508346,0.70402141,116610.0,116600.0,0.4815757]
[1755878508654,0.70402141,116610.0,116600.0,0.2712757]
[1755878508862,0.70502141,116610.0,116600.0,0.4816557]
[1755878509155,0.70522141,116610.0,116600.0,1.00478913]
[1755878509546,0.62587141,116610.0,116600.0,1.00478913]
[1755878509746,0.51194141,116610.0,116600.0,0.4818557]
[1755878509955,0.63588141,116610.0,116600.0,0.79440913]
[1755878510255,0.38139141,116610.0,116600.0,1.00478913]
[1755878510449,0.11393,116630.0,116620.0,0.486601]
[1755878510649,0.12394,116640.0,116630.0,0.4865937]
[1755878510850,0.57548,116640.0,116630.0,1.00952713]
[1755878511052,0.21468,116640.0,116630.0,1.00952713]
[1755878511255,0.21468,116640.0,116620.0,1.25364]
[1755878511256,0.67612107,116650.0,116640.0,0.4865863]
[1755878511649,0.67612107,116650.0,116640.0,0.3191463]
[1755878511849,0.67612107,116650.0,116640.0,0.2762063]
[1755878512046,0.67612107,116650.0,116640.0,0.4865863]
[1755878512457,1.1990545,116650.0,116640.0,0.1616163]
[1755878512646,1.1990545,116650.0,116640.0,0.0857363]
[1755878512852,0.29634,116640.0,116630.0,0.07688]
[1755878513047,2.37235343,116640.0,116630.0,0.001]
[1755878513354,1.93994343,116640.0,116630.0,0.3290637]
[1755878513553,1.41701,116640.0,116630.0,0.2762137]
[1755878513751,1.94014343,116640.0,116630.0,0.0859437]
[1755878513957,2.12255343,116640.0,116630.0,0.0879437]
[1755878514554,2.12355343,116640.0,116630.0,0.1618237]
[1755878514751,0.65834,116640.0,116630.0,0.4867937]
[1755878514952,0.29754,116640.0,116630.0,0.4867937]
[1755878515153,0.65834,116640.0,116630.0,0.1618237]
[1755878515353,1.43327343,116640.0,116630.0,0.0859437]
[1755878516260,0.91034,116640.0,116630.0,0.0859437]
[1755878516561,1.43327343,116640.0,116630.0,0.0859437]
[1755878516748,0.91034,116640.0,116630.0,0.4438537]
[1755878516952,0.66034,116640.0,116630.0,0.4867937]
[1755878517152,0.90934,116640.0,116630.0,0.4867937]
[1755878517459,0.0022,116640.0,116630.0,1.00972713]
[1755878517953,0.0042,116640.0,116630.0,1.00972713]
[1755878518351,0.0022,116640.0,116630.0,0.4867937]
[1755878518549,0.0022,116640.0,116630.0,1.25972713]
[1755878518758,0.0032,116640.0,116630.0,1.25972713]
[1755878519155,0.0012,116640.0,116630.0,1.25972713]
[1755878519461,0.0012,116640.0,116630.0,2.20052713]
[1755878519652,0.0012,116640.0,116630.0,2.56132713]
[1755878520657,0.01894108,116650.0,116640.0,0.4865878]
[1755878520861,0.29634,116680.0,116670.0,0.4865657]
[1755878521157,0.29634,116680.0,116670.0,0.07588]
[1755878521158,0.69494113,116680.0,116670.0,0.07588]
[1755878521358,0.69494113,116680.0,116650.0,1.1454292]
[1755878521359,0.31528,116660.0,116650.0,1.1454292]
[1755878521552,0.50368,116670.0,116660.0,0.4865686]
[1755878521754,0.62376472,116680.0,116670.0,0.4865658]
[1755878521958,0.64222695,116680.0,116670.0,0.4865658]
[1755878522556,0.64222695,116680.0,116670.0,1.00949923]
[1755878522557,0.39859695,116680.0,116670.0,1.00949923]
[1755878522752,0.49934695,116680.0,116670.0,1.00949923]
[1755878523260,0.71387695,116680.0,116670.0,0.4865658]
[1755878523655,0.71387695,116680.0,116670.0,1.00949923]
[1755878524061,0.71787695,116680.0,116670.0,1.01049923]
[1755878524260,0.71807695,116680.0,116670.0,0.4877658]
[1755878525167,0.71807695,116680.0,116670.0,1.01069923]
[1755878525365,0.71807695,116680.0,116670.0,0.4877658]
[1755878525865,0.72107695,116680.0,116670.0,0.4877658]
[1755878526166,0.72107695,116680.0,116670.0,0.3203258]
[1755878526357,0.72107695,116680.0,116670.0,0.4877658]
[1755878526760,0.51972695,116680.0,116670.0,1.01069923]
[1755878527257,0.40579695,116680.0,116670.0,0.4877658]
[1755878527468,0.63096472,116680.0,116670.0,0.4877658]
[1755878528267,0.38733472,116680.0,116670.0,0.4877658]
[1755878528465,0.70261472,116680.0,116670.0,0.4877658]
[1755878529569,0.70261472,116680.0,116670.0,0.4448259]
[1755878529759,0.70261472,116680.0,116670.0,0.4877659]
[1755878530965,0.05548472,116680.0,116670.0,1.94429933]
[1755878531169,0.38733472,116680.0,116670.0,1.94429933]
[1755878531473,0.25083,116680.0,116670.0,1.4213659]
[1755878531670,0.22188,116680.0,116670.0,1.4213659]
[1755878531867,0.368,116680.0,116670.0,1.01069933]
[1755878532567,0.61163,116680.0,116670.0,0.4877659]
[1755878532865,0.368,116680.0,116670.0,0.4877659]
[1755878533068,0.0072,116680.0,116670.0,0.4877659]
[1755878533467,0.58268,116680.0,116670.0,1.01069933]
[1755878533663,0.61163,116680.0,116670.0,1.01069933]
[1755878533972,0.68328,116680.0,116670.0,0.1627959]
[1755878534274,1.45621343,116680.0,116670.0,0.0869159]
[1755878534765,2.38645343,116680.0,116670.0,0.0012]
[1755878534964,2.37136203,116680.0,116660.0,0.22345935]
[1755878535175,1.19378343,116670.0,116660.0,0.1927982]
[1755878535361,1.19378343,116670.0,116660.0,0.2785215]
[1755878535557,1.85101,116670.0,116660.0,0.66483265]
[1755878535756,1.85101,116670.0,116660.0,0.30918265]
[1755878536470,0.57356,116670.0,116660.0,0.54005265]
[1755878536662,0.57356,116670.0,116660.0,0.70777265]
[1755878536663,0.67085,116670.0,116660.0,0.70777265]
[1755878537169,0.67085,116670.0,116660.0,0.3544015]
[1755878537370,0.69003582,116670.0,116660.0,0.38060265]
[1755878537672,0.94003582,116670.0,116660.0,0.2785215]
[1755878537874,1.46596925,116670.0,116660.0,0.2795215]
[1755878538172,0.94303582,116670.0,116660.0,0.2795215]
[1755878538371,0.94323582,116670.0,116660.0,0.31038265]
[1755878538572,1.46616925,116670.0,116660.0,0.31038265]
[1755878538774,0.94323582,116670.0,116660.0,0.31038265]
[1755878538970,1.46816925,116670.0,116660.0,0.31038265]
[1755878539165,1.46816925,116670.0,116660.0,0.18151115]
[1755878539364,2.39672925,116670.0,116660.0,0.26723445]
[1755878539766,2.48244515,116670.0,116660.0,0.18151115]
[1755878539975,2.48244515,116670.0,116660.0,0.15085]
[1755878540175,0.1448433,116660.0,116650.0,0.09839882]
[1755878540473,1.02857673,116660.0,116650.0,0.11639175]
[1755878540669,1.19285343,116660.0,116650.0,0.18781175]
[1755878540975,1.19285343,116660.0,116650.0,0.03066115]
[1755878540976,1.27857653,116660.0,116650.0,0.03066115]
[1755878541173,0.66992,116660.0,116650.0,0.11639155]
[1755878541376,0.66992,116660.0,116650.0,0.18781155]
[1755878541579,1.19485343,116660.0,116650.0,0.18781155]
[1755878541778,1.19485343,116660.0,116650.0,0.25691404]
[1755878541975,1.19585343,116660.0,116650.0,0.25691404]
[1755878542271,0.67292,116660.0,116650.0,0.25691404]
[1755878542675,1.32085,116660.0,116650.0,0.36896404]
[1755878542882,1.32085,116660.0,116650.0,0.53668404]
[1755878543078,1.32085,116660.0,116650.0,0.36896404]
[1755878543280,1.32105,116660.0,116650.0,0.36916404]
[1755878543480,1.32105,116660.0,116650.0,0.57895404]
[1755878543872,1.32312,116660.0,116650.0,0.57895404]
[1755878544070,1.32312,116660.0,116650.0,0.59428462]
[1755878544583,1.32443,116660.0,116650.0,0.59428462]
[1755878545570,0.39771,116660.0,116650.0,0.59428462]
[1755878545770,1.32443,116660.0,116650.0,1.07122632]
[1755878546168,0.96363,116660.0,116650.0,1.07122632]
[1755878546382,0.3944,116660.0,116650.0,1.07122632]
[1755878546683,0.0032,116660.0,116650.0,1.07122632]
[1755878547180,0.0032,116660.0,116650.0,1.13268026]
[1755878547484,0.0032,116660.0,116650.0,1.38268026]
[1755878547668,0.01918582,116670.0,116660.0,0.4789837]
[1755878547868,0.01918582,116670.0,116660.0,1.92507713]
[1755878548073,0.01918582,116670.0,116660.0,2.28587713]
[1755878548274,0.01918582,116670.0,116660.0,2.59733107]
[1755878548476,0.36607,116690.0,116680.0,0.478969]
[1755878548781,0.3608,116690.0,116680.0,1.03267216]
[1755878549171,0.3608,116690.0,116680.0,0.50973873]
[1755878549480,0.36607,116690.0,116680.0,1.03267216]
[1755878549774,0.37522,116690.0,116680.0,0.25630973]
[1755878549979,0.3956,116690.0,116680.0,0.21423973]
[1755878550282,0.3956,116690.0,116680.0,0.10218973]
[1755878550471,0.3996,116690.0,116680.0,0.10218973]
[1755878550776,1.26323523,116690.0,116680.0,0.00539973]
[1755878550978,1.26423523,116690.0,116680.0,0.00559973]
[1755878551183,1.26423523,116690.0,116680.0,0.0012]
[1755878551479,1.30226,116690.0,116680.0,1.00210363]
[1755878551681,0.38042,116690.0,116680.0,0.4713702]
[1755878551869,0.38022,116690.0,116680.0,0.99430363]
[1755878552075,0.38022,116690.0,116680.0,0.1495302]
[1755878552577,1.28964,116690.0,116680.0,0.4713702]
[1755878552782,1.28492,116690.0,116680.0,0.99430363]
[1755878552971,1.28492,116690.0,116680.0,0.99630363]
[1755878553175,0.3618,116690.0,116680.0,0.99630363]
[1755878553371,0.3618,116690.0,116680.0,0.19768479]
[1755878553575,1.13473343,116690.0,116680.0,0.1591304]
[1755878553875,1.13473343,116690.0,116680.0,0.0857104]
[1755878554079,0.6128,116690.0,116680.0,0.1571304]
[1755878554583,0.6128,116690.0,116680.0,1.00190383]
[1755878554584,0.3628,116690.0,116680.0,1.00190383]
[1755878554770,1.2844,116690.0,116680.0,1.00190383]
[1755878555082,0.363,116690.0,116680.0,1.00210383]
[1755878555378,0.363,116690.0,116680.0,0.4791704]
[1755878555578,0.363,116690.0,116680.0,1.00210383]
[1755878555981,0.613,116690.0,116680.0,0.1573304]
[1755878556785,0.613,116690.0,116680.0,0.20348499]
[1755878556986,0.613,116690.0,116680.0,0.52532499]
[1755878557184,0.363,116690.0,116680.0,1.04825842]
[1755878557378,0.363,116690.0,116680.0,0.52532499]
[1755878557579,0.363,116690.0,116680.0,1.04825842]
[1755878558179,0.363,116690.0,116680.0,0.52532499]
[1755878558379,0.363,116690.0,116680.0,1.04825842]
[1755878558686,0.4487031,116690.0,116680.0,0.11777459]
[1755878558887,1.3683431,116690.0,116680.0,0.07162]
[1755878559186,1.3683431,116690.0,116680.0,0.1573304]
[1755878559480,1.3683431,116690.0,116680.0,0.20348499]
[1755878559690,1.28264,116690.0,116680.0,0.52532499]
[1755878559879,0.363,116690.0,116680.0,1.04825842]
[1755878560884,0.363,116690.0,116680.0,0.52532499]
[1755878561186,0.363,116690.0,116680.0,1.29825842]
[1755878562689,0.0022,116690.0,116680.0,1.29825842]
[1755878562990,0.3608,116710.0,116700.0,0.07142]
[1755878563186,0.73893661,116710.0,116700.0,0.07142]
[1755878563387,0.74113661,116710.0,116700.0,0.1571161]
[1755878564290,0.74513661,116710.0,116700.0,0.1581161]
[1755878564481,0.74813661,116710.0,116700.0,0.1581161]
[1755878565487,0.99813661,116710.0,116700.0,0.07242]
[1755878565692,0.99813661,116710.0,116700.0,0.1581161]
[1755878566691,0.99813661,116710.0,116700.0,0.20093494]
[1755878566894,0.99833661,116710.0,116700.0,0.20113494]
[1755878568183,0.99833661,116710.0,116700.0,0.31149494]
[1755878568380,0.99833661,116710.0,116700.0,0.51604494]
[1755878568381,0.74613661,116710.0,116700.0,0.51604494]
[1755878568586,0.74613661,116710.0,116700.0,1.03897837]
[1755878568786,0.74663619,116710.0,116700.0,1.03897837]
[1755878568992,0.38583619,116710.0,116700.0,0.31149494]
[1755878569188,0.38648619,116710.0,116700.0,0.31149494]
[1755878569393,0.38583619,116710.0,116700.0,0.51604494]
[1755878572600,0.38583619,116710.0,116700.0,1.03897837]
[1755878573102,0.368,116710.0,116700.0,1.33517586]
[1755878573602,0.368,116710.0,116700.0,0.81224243]
[1755878573804,0.368,116710.0,116700.0,1.33517586]
[1755878574295,1.47506,116740.0,116730.0,0.0856739]
[1755878574602,1.66273,116740.0,116730.0,0.4714839]
[1755878574799,0.75549,116740.0,116730.0,0.4714839]
[1755878574988,0.64469,116740.0,116730.0,0.4714839]
[1755878575293,1.00549,116740.0,116730.0,0.4714839]
[1755878575599,0.56964,116740.0,116730.0,0.99441733]
[1755878575801,0.93044,116740.0,116730.0,0.4714839]
[1755878575991,1.83608,116740.0,116730.0,0.4714839]
[1755878576297,0.47342,116740.0,116730.0,0.99441733]
[1755878576496,0.31964,116750.0,116740.0,0.4714766]
[1755878576692,1.47314,116760.0,116750.0,0.1960193]
[1755878576995,1.6785634,116760.0,116750.0,0.2669193]
[1755878577294,1.66073,116760.0,116750.0,0.46878307]
[1755878577502,1.66093,116760.0,116750.0,0.30938307]
[1755878577899,1.66093,116760.0,116750.0,0.5390336]
[1755878578206,1.68274242,116760.0,116750.0,0.5839836]
[1755878578403,1.68474242,116760.0,116750.0,0.5839836]
[1755878579001,1.68474242,116760.0,116750.0,0.2690736]
[1755878579194,1.68474242,116760.0,116750.0,0.15590983]
[1755878579400,1.91693,116760.0,116750.0,0.15590993]
[1755878579612,2.43986343,116760.0,116750.0,0.15590993]
[1755878579798,1.91693,116760.0,116750.0,0.15590993]
[1755878580391,2.52551543,116760.0,116750.0,0.0002]
[1755878580593,0.39469,116740.0,116730.0,0.13186434]
[1755878580895,2.79190343,116740.0,116730.0,0.0856705]
[1755878581098,2.26897,116740.0,116730.0,0.0856705]
[1755878581298,0.31964,116730.0,116720.0,0.13187114]
[1755878581600,1.27842343,116730.0,116720.0,0.13187114]
[1755878581809,0.75549,116730.0,116720.0,0.15541684]
[1755878582000,1.00549,116730.0,116720.0,0.0856773]